bitfinex-derivatives/quotes_ETHF0:USTF0_20250214
["timestamp","ask_amount","ask_price","bid_price","bid_amount"]
[1739505039146,0.2941,2719.6,2719.5,10.68094645]
[1739505039350,0.00551268,2720.1,2719.5,9.94562645]
[1739505039555,0.00551268,2720.1,2720.0,3.94298]
[1739505040341,0.00551268,2720.1,2720.0,44.74298]
[1739505040546,0.29961268,2720.1,2720.0,44.74298]
[1739505040952,0.29961268,2720.1,2720.0,44.0078]
[1739505041145,0.29961268,2720.1,2720.0,3.2078]
[1739505041346,1.03477268,2720.1,2720.0,3.2078]
[1739505041551,0.73523,2719.9,2719.7,3.2078]
[1739505042057,0.29961268,2720.1,2719.7,3.2078]
[1739505042352,0.73524,2719.8,2719.4,3.94313]
[1739505042549,2.007,2719.8,2719.4,3.2078]
[1739505042749,2.007,2719.8,2719.5,0.7353]
[1739505042944,2.007,2719.8,2719.7,3.2078]
[1739505043848,2.007,2719.8,2719.7,3.94306]
[1739505044043,0.5551,2720.0,2719.8,0.73522]
[1739505044247,0.5551,2720.0,2719.7,3.94305]
[1739505044554,0.5551,2720.0,2719.9,0.73521]
[1739505045252,0.30515657,2720.1,2719.7,3.2078]
[1739505045454,0.30515657,2720.1,2719.8,0.73521]
[1739505045658,0.30515657,2720.1,2719.9,0.7352]
[1739505045842,0.30515657,2720.1,2719.7,3.2078]
[1739505046251,0.30515657,2720.1,2720.0,3.94298]
[1739505046760,0.30515657,2720.1,2720.0,3.2078]
[1739505047148,0.30515657,2720.1,2720.0,3.94298]
[1739505048156,0.30515657,2720.1,2720.0,3.2078]
[1739505049455,0.30515657,2720.1,2720.0,3.94298]
[1739505049760,0.30515657,2720.1,2720.0,3.2078]
[1739505050961,1.04031657,2720.1,2720.0,3.2078]
[1739505051367,0.7352,2720.0,2719.7,3.2078]
[1739505051560,0.30515657,2720.1,2719.7,3.2078]
[1739505051561,1.984,2719.9,2719.7,3.2078]
[1739505051764,1.984,2719.9,2719.1,3.95113913]
[1739505051765,0.73524,2719.8,2719.4,3.2078]
[1739505051959,2.5193,2719.9,2719.1,0.00551268]
[1739505051960,1.984,2719.9,2719.7,3.2078]
[1739505052165,0.30515657,2720.1,2719.7,3.2078]
[1739505052359,0.30515657,2720.1,2720.0,3.94298]
[1739505053665,3.2078,2721.0,2720.0,3.94298]
[1739505053666,0.01574854,2721.5,2720.2,1.8378]
[1739505053856,0.01574854,2721.5,2721.0,3.2078]
[1739505054367,0.01574854,2721.5,2721.3,3.2078]
[1739505054865,0.0267,2721.4,2721.3,3.2078]
[1739505055492,0.0267,2721.4,2721.1,40.80551268]
[1739505055766,0.0267,2721.4,2721.2,3.2078]
[1739505056664,0.0267,2721.4,2721.1,40.80551268]
[1739505056861,0.6022,2721.4,2721.1,0.00551268]
[1739505057059,0.6022,2721.4,2721.1,3.21331268]
[1739505058167,0.0267,2721.4,2721.2,0.73486]
[1739505058368,0.0267,2721.4,2721.1,3.21331268]
[1739505058672,0.0267,2721.4,2721.2,0.73484]
[1739505059061,0.0267,2721.4,2721.3,0.73483]
[1739505059470,0.0267,2721.4,2721.2,0.73486]
[1739505059671,0.0267,2721.4,2721.1,3.21331268]
[1739505061474,0.73493,2721.0,2720.7,3.2078]
[1739505061670,3.2078,2721.1,2720.4,3.2078]
[1739505061969,0.73496,2720.9,2720.4,3.2078]
[1739505062472,2.5446,2721.0,2720.4,3.2078]
[1739505062671,2.5446,2721.0,2720.5,0.73505]
[1739505062863,0.73496,2720.9,2720.4,3.21331268]
[1739505063263,0.73497,2720.8,2720.4,3.21331268]
[1739505063472,0.73494,2720.9,2720.4,3.21331268]
[1739505063675,2.5446,2721.0,2720.7,3.2078]
[1739505063975,3.27952,2721.0,2720.7,3.2078]
[1739505064480,2.5446,2721.0,2720.7,3.2078]
[1739505064770,3.85223,2721.0,2720.7,3.2078]
[1739505065269,3.1173,2721.0,2720.7,3.2078]
[1739505065469,1.1373,2721.0,2720.7,3.2078]
[1739505066262,1.87223,2721.0,2720.7,3.2078]
[1739505066464,1.1373,2721.0,2720.7,3.2078]
[1739505067181,0.0267,2721.4,2720.9,0.73494]
[1739505067370,0.0267,2721.4,2721.0,3.9427]
[1739505067371,1.9947,2721.4,2721.0,3.9427]
[1739505067676,1.9947,2721.4,2721.0,3.2078]
[1739505067677,0.73485,2721.3,2721.0,3.2078]
[1739505067869,0.73485,2721.3,2721.1,40.8]
[1739505068168,0.73485,2721.3,2721.0,3.2078]
[1739505068370,1.9947,2721.4,2720.7,3.2078]
[1739505068569,0.7349,2721.1,2720.7,3.2078]
[1739505068872,1.9947,2721.4,2720.7,3.2078]
[1739505069171,0.73497,2720.8,2720.7,3.2078]
[1739505069370,1.964,2720.9,2720.7,3.2078]
[1739505070368,1.964,2720.9,2720.8,0.73497]
[1739505070568,0.73486,2721.2,2720.7,3.94278]
[1739505070767,0.73487,2721.2,2720.7,3.94278]
[1739505071175,0.026,2721.1,2720.7,3.94278]
[1739505071867,0.73492,2721.0,2720.7,3.2078]
[1739505072470,0.73494,2720.9,2720.7,3.2078]
[1739505072773,0.026,2721.1,2720.7,3.2078]
[1739505073169,0.73495,2720.9,2720.7,3.2078]
[1739505073565,0.026,2721.1,2720.7,3.2078]
[1739505073769,0.73497,2720.8,2720.7,3.2078]
[1739505073972,0.026,2721.1,2720.5,40.8]
[1739505074177,0.73502,2720.6,2720.5,40.8]
[1739505074869,0.73502,2720.6,2720.4,0.00551268]
[1739505075070,1.963,2720.8,2720.4,0.00551268]
[1739505075271,0.73505,2720.5,2720.4,0.00551268]
[1739505075476,0.73505,2720.5,2719.6,2.5267]
[1739505075477,3.2078,2720.5,2719.6,3.2078]
[1739505075873,3.2078,2720.2,2719.6,3.2078]
[1739505076083,3.2078,2720.2,2719.2,3.59715796]
[1739505076084,0.73525,2719.8,2719.2,6.80495796]
[1739505076374,2.69725,2719.8,2719.7,40.8]
[1739505076584,2.5219,2719.8,2718.9,6.80495796]
[1739505076774,3.2078,2719.6,2718.9,6.80495796]
[1739505077083,0.73535,2719.4,2718.9,6.80495796]
[1739505077371,3.2078,2719.6,2718.9,6.80495796]
[1739505077372,1.969,2719.3,2718.9,6.80495796]
[1739505078574,1.969,2719.3,2719.2,3.2078]
[1739505079481,1.961,2719.6,2719.2,7.54034796]
[1739505079780,1.961,2719.6,2719.2,6.80495796]
[1739505080072,1.961,2719.6,2719.2,3.2078]
[1739505080073,0.73535,2719.4,2719.2,3.2078]
[1739505080278,0.73537,2719.4,2718.9,6.80495796]
[1739505080474,1.961,2719.6,2718.9,6.80495796]
[1739505080674,0.73534,2719.5,2718.9,6.80495796]
[1739505080869,0.73532,2719.5,2718.9,7.54042796]
[1739505081074,0.73536,2719.4,2718.9,6.80495796]
[1739505081275,3.2078,2719.4,2718.9,6.80495796]
[1739505081475,1.961,2719.6,2719.2,0.7354]
[1739505081671,4.53604,2719.8,2718.9,6.80495796]
[1739505081876,0.73533,2719.5,2718.9,7.54042796]
[1739505082176,0.73536,2719.4,2718.9,6.80495796]
[1739505082376,0.73543,2719.1,2718.9,3.2078]
[1739505082681,0.73543,2719.1,2718.8,0.02545]
[1739505082875,5.1688,2719.1,2718.8,0.02545]
[1739505083076,0.73548,2718.9,2718.8,0.02545]
[1739505083277,0.73561,2718.5,2718.3,3.2078]
[1739505083480,1.963,2718.6,2718.3,3.2078]
[1739505083784,0.73562,2718.4,2718.3,3.2078]
[1739505083970,1.963,2718.6,2717.7,6.80495796]
[1739505084283,3.2078,2718.4,2717.7,6.80495796]
[1739505084582,0.73574,2718.0,2717.7,3.2078]
[1739505084776,1.96,2718.1,2717.3,3.2078]
[1739505085082,3.94357,2717.9,2717.3,3.2078]
[1739505085277,1.961,2717.8,2717.3,3.2078]
[1739505085477,1.96,2718.0,2717.6,3.2078]
[1739505086676,2.69573,2718.0,2717.6,3.2078]
[1739505086882,1.96,2718.0,2717.6,3.2078]
[1739505087085,0.73581,2717.7,2717.1,44.0078]
[1739505087380,0.7358,2717.8,2717.1,44.0078]
[1739505087682,0.73577,2717.9,2717.1,47.60495796]
[1739505087878,2.69573,2718.0,2717.4,3.2078]
[1739505088783,1.96,2718.0,2717.4,3.2078]
[1739505089182,0.73581,2717.7,2717.1,47.60495796]
[1739505089374,0.73575,2717.9,2717.2,0.73593]
[1739505089578,3.2078,2717.8,2717.1,47.60495796]
[1739505089781,0.7358,2717.8,2717.1,47.60495796]
[1739505090080,0.5852,2718.1,2717.4,3.2078]
[1739505090279,1.956,2717.9,2717.4,3.2078]
[1739505090479,2.69176,2717.9,2717.4,3.2078]
[1739505090784,2.69177,2717.9,2717.4,3.2078]
[1739505091181,1.956,2717.9,2717.4,3.2078]
[1739505091383,5.1638,2717.9,2717.4,3.2078]
[1739505091583,0.73579,2717.8,2717.4,3.2078]
[1739505092386,5.1638,2717.9,2717.4,3.2078]
[1739505092586,5.1638,2717.9,2717.1,44.0078]
[1739505093086,0.7358,2717.8,2717.2,0.73593]
[1739505093483,5.1638,2717.9,2717.1,44.0078]
[1739505093484,5.1638,2717.9,2717.1,44.74375]
[1739505093875,5.1638,2717.9,2717.1,44.0078]
[1739505094081,0.73581,2717.7,2717.1,44.74376]
[1739505094392,1.946,2717.6,2717.3,0.73589]
[1739505094586,2.68185,2717.6,2717.1,44.74376]
[1739505094883,0.7359,2717.4,2717.1,3.2078]
[1739505095180,1.946,2717.6,2717.1,3.2078]
[1739505095586,0.73586,2717.5,2717.1,3.2078]
[1739505095979,2.68185,2717.6,2717.1,3.94376]
[1739505096182,2.68185,2717.6,2717.1,3.2078]
[1739505096488,2.68185,2717.6,2717.1,3.94377]
[1739505096683,1.946,2717.6,2717.1,3.2078]
[1739505096887,0.73593,2717.3,2717.1,3.2078]
[1739505097087,0.73587,2717.5,2717.1,3.2078]
[1739505097479,0.7359,2717.4,2717.2,40.8]
[1739505098285,0.73587,2717.5,2717.2,40.8]
[1739505098685,2.68185,2717.6,2717.2,40.8]
[1739505099086,1.946,2717.6,2717.2,40.8]
[1739505099286,1.946,2717.6,2717.1,3.2078]
[1739505099493,0.73594,2717.3,2717.1,3.2078]
[1739505099787,0.73594,2717.2,2717.1,40.8]
[1739505099992,3.2078,2717.3,2716.8,3.2078]
[1739505100187,0.73602,2716.9,2716.8,3.2078]
[1739505100588,0.00551268,2717.1,2716.5,44.0078]
[1739505100891,0.73607,2716.8,2716.2,6.82167639]
[1739505101093,2.6651,2716.7,2716.2,6.82168639]
[1739505101295,1.929,2716.7,2716.2,6.82168639]
[1739505101497,1.929,2716.7,2716.2,6.08547639]
[1739505101684,1.929,2716.7,2716.3,0.73616]
[1739505101885,1.928,2717.0,2716.6,3.94388]
[1739505102090,1.928,2717.0,2716.6,3.2078]
[1739505102293,0.0248,2716.9,2716.6,3.2078]
[1739505102495,0.73607,2716.8,2716.6,3.2078]
[1739505102698,0.0248,2716.9,2716.6,3.2078]
[1739505102901,0.73606,2716.8,2716.6,3.2078]
[1739505103095,0.73608,2716.7,2716.6,3.2078]
[1739505103297,0.73606,2716.8,2716.6,3.2078]
[1739505103590,3.2078,2716.7,2716.2,3.2078]
[1739505103791,0.0248,2716.9,2716.2,3.2078]
[1739505104288,3.2078,2716.8,2716.2,3.2078]
[1739505104484,3.2078,2716.5,2715.9,3.2078]
[1739505104688,0.73616,2716.4,2715.9,3.2078]
[1739505104999,0.5764,2716.7,2716.2,3.2078]
[1739505105195,0.0248,2716.9,2716.2,3.2078]
[1739505105393,1.932,2716.8,2716.4,0.73615]
[1739505105701,1.932,2716.8,2716.3,0.73617]
[1739505105996,0.0248,2716.9,2716.5,40.8]
[1739505106300,1.9548,2716.9,2716.5,44.0078]
[1739505106500,0.0248,2716.9,2716.5,44.0078]
[1739505106698,1.929,2716.8,2716.5,44.0078]
[1739505108002,1.929,2716.8,2716.5,44.74392]
[1739505108397,1.929,2716.8,2716.5,44.0078]
[1739505108697,1.929,2716.8,2716.5,44.74392]
[1739505109004,1.9458,2716.9,2716.5,44.0078]
[1739505109201,1.9458,2716.9,2716.5,3.94393]
[1739505109598,2.68183,2716.9,2716.5,3.2078]
[1739505109901,1.9458,2716.9,2716.5,3.2078]
[1739505110199,0.0248,2716.9,2716.8,3.94385]
[1739505110999,0.01557805,2716.9,2716.8,7.55179755]
[1739505111594,0.01557805,2716.9,2716.8,3.2078]
[1739505111888,0.01557805,2716.9,2716.8,3.94385]
[1739505112093,0.01557805,2716.9,2716.8,3.2078]
[1739505113093,0.75159805,2716.9,2716.8,3.2078]
[1739505113293,0.01557805,2716.9,2716.5,3.94392]
[1739505113498,0.01557805,2716.9,2716.8,0.73605]
[1739505114097,0.01557805,2716.9,2716.8,3.94385]
[1739505114694,0.01557805,2716.9,2716.8,7.55179755]
[1739505114898,0.00551268,2717.1,2717.0,0.73599]
[1739505115601,1.917,2717.9,2716.8,6.81574755]
[1739505115803,1.917,2717.9,2717.3,3.2078]
[1739505115804,0.73581,2717.7,2717.3,3.2078]
[1739505116104,0.7359,2717.4,2717.0,3.2078]
[1739505116303,2.65291,2717.4,2717.0,3.94379]
[1739505116494,1.917,2717.4,2717.0,3.94379]
[1739505116891,1.917,2717.4,2717.1,0.73597]
[1739505118212,1.917,2717.4,2717.0,3.2078]
[1739505118502,1.917,2717.4,2717.1,0.73595]
[1739505118702,1.917,2717.4,2717.0,3.2078]
[1739505118906,1.917,2717.4,2717.1,0.73595]
[1739505119199,0.00551268,2717.5,2717.1,0.73595]
[1739505119406,1.91251268,2717.5,2717.2,0.73592]
[1739505119705,1.91251268,2717.5,2717.0,3.2078]
[1739505120006,2.64839268,2717.5,2717.0,3.2078]
[1739505120299,2.64839268,2717.5,2717.1,0.73594]
[1739505120505,0.73589,2717.4,2717.0,3.94378]
[1739505120700,1.91251268,2717.5,2716.9,0.00551268]
[1739505120909,0.73593,2717.3,2716.9,0.74153268]
[1739505121206,1.91251268,2717.5,2717.2,0.73592]
[1739505121400,1.91251268,2717.5,2717.0,3.2078]
[1739505121797,5.12031268,2717.5,2717.0,3.2078]
[1739505121998,0.73597,2717.1,2717.0,3.2078]
[1739505122198,5.12031268,2717.5,2717.0,3.2078]
[1739505122398,0.73593,2717.3,2717.0,3.2078]
[1739505122598,5.12031268,2717.5,2717.0,3.2078]
[1739505122797,0.7359,2717.4,2717.0,3.2078]
[1739505123011,5.12031268,2717.5,2717.0,3.2078]
[1739505123203,6.81574755,2717.2,2716.9,0.00551268]
[1739505123406,6.81574755,2717.2,2716.4,3.2078]
[1739505123606,3.2078,2716.8,2716.6,0.73609]
[1739505123799,1.903,2716.7,2716.6,0.73609]
[1739505124000,3.2078,2717.1,2716.9,0.73602]
[1739505124209,1.90951268,2717.5,2716.7,6.08672256]
[1739505124501,2.64539268,2717.5,2717.0,0.73598]
[1739505124707,1.90951268,2717.5,2716.8,0.5483]
[1739505124904,3.2078,2717.0,2716.5,0.5727]
[1739505125103,1.904,2716.9,2716.4,3.2078]
[1739505125304,1.904,2716.9,2716.4,3.94395]
[1739505125510,1.904,2716.9,2716.5,0.73613]
[1739505126299,1.904,2716.9,2716.4,3.2078]
[1739505126506,1.904,2716.9,2716.4,6.08672256]
[1739505126707,1.904,2716.9,2716.7,0.73607]
[1739505127104,1.904,2716.9,2716.6,0.73608]
[1739505127306,2.64003,2716.9,2716.5,1.1355]
[1739505127606,2.64003,2716.9,2716.5,1.87163]
[1739505127802,1.904,2716.9,2716.6,0.73609]
[1739505128202,1.904,2716.9,2716.5,1.1355]
[1739505128597,1.904,2716.9,2716.6,0.73609]
[1739505129007,1.904,2716.9,2716.5,1.1355]
[1739505129311,0.73605,2716.8,2716.5,1.1355]
[1739505129511,1.904,2716.9,2716.5,1.1355]
[1739505129811,0.73609,2716.7,2716.4,3.2078]
[1739505130517,1.904,2716.9,2716.4,3.2078]
[1739505130710,0.73611,2716.6,2716.4,3.2078]
[1739505131205,3.2078,2716.6,2716.1,3.2078]
[1739505131410,0.7362,2716.3,2716.1,3.2078]
[1739505131613,1.893,2716.3,2716.1,3.2078]
[1739505133412,0.73621,2716.2,2715.9,0.5743]
[1739505133705,5.1008,2716.3,2715.9,0.5743]
[1739505134102,0.73623,2716.2,2715.9,0.5743]
[1739505134305,5.1008,2716.3,2715.9,0.5743]
[1739505134501,5.1008,2716.3,2715.6,0.5887]
[1739505134716,7.97972256,2716.3,2715.2,2.87892256]
[1739505134908,0.73625,2716.1,2715.3,3.2078]
[1739505135103,0.73625,2716.1,2715.6,0.73636]
[1739505135303,1.88952293,2716.0,2715.6,0.73636]
[1739505135504,1.88952293,2716.0,2715.3,3.2078]
[1739505135709,2.62580293,2716.0,2715.5,0.73639]
[1739505135912,5.83360293,2716.0,2715.5,0.73639]
[1739505136109,0.7363,2715.9,2715.5,0.73639]
[1739505136309,1.88952293,2716.0,2715.4,0.73641]
[1739505136505,0.73631,2715.9,2715.4,0.73641]
[1739505136708,0.73629,2715.9,2715.4,0.73641]
[1739505136914,1.88952293,2716.0,2715.3,3.2078]
[1739505137110,2.62580293,2716.0,2715.6,0.73636]
[1739505137312,1.88952293,2716.0,2715.4,40.8]
[1739505137612,0.00552293,2716.0,2715.9,0.73629]
[1739505139410,0.00552293,2716.0,2715.8,0.5891]
[1739505139610,0.00552293,2716.0,2715.8,1.3254]
[1739505139804,0.00552293,2716.0,2715.8,0.5891]
[1739505140006,0.73629,2715.9,2715.4,41.5364]
[1739505140209,0.00552293,2716.0,2715.4,40.8]
[1739505140403,0.73631,2715.9,2715.5,0.73639]
[1739505140603,0.7363,2715.9,2715.5,0.73638]
[1739505140809,0.00552293,2716.0,2715.4,40.8]
[1739505141007,3.2078,2715.9,2715.4,40.8]
[1739505141606,3.2078,2715.9,2715.6,0.73637]
[1739505141801,0.74181293,2716.0,2715.6,0.73637]
[1739505142015,3.2078,2715.9,2715.4,40.8]
[1739505142209,1.30694,2715.8,2715.4,0.73642]
[1739505142408,1.87,2715.7,2715.4,0.73642]
[1739505142604,1.87,2715.7,2715.4,40.8]
[1739505142808,1.87,2715.7,2715.3,3.2078]
[1739505143011,1.87,2715.7,2715.5,0.73638]
[1739505143212,1.87,2715.7,2715.6,0.73637]
[1739505143409,1.87,2715.7,2715.4,40.8]
[1739505143803,1.87,2715.7,2715.4,0.73642]
[1739505144003,1.87,2715.7,2715.5,0.73639]
[1739505144207,1.87,2715.7,2715.4,40.8]
[1739505144410,1.87,2715.7,2715.6,0.73637]
[1739505144814,1.87,2715.7,2715.4,40.8]
[1739505145016,1.87,2715.7,2715.6,0.73637]
[1739505146614,1.87,2715.7,2715.6,3.94417]
[1739505146811,1.87,2715.7,2715.6,0.73637]
[1739505147008,1.87452293,2716.0,2715.7,0.73633]
[1739505147211,2.61079293,2716.0,2715.7,0.73633]
[1739505147613,0.73629,2715.9,2715.5,3.94418]
[1739505147814,0.73633,2715.8,2715.4,41.5364]
[1739505148118,2.61080293,2716.0,2715.4,40.8]
[1739505148316,2.61081293,2716.0,2715.6,0.73636]
[1739505148819,1.87452293,2716.0,2715.5,3.2078]
[1739505149219,0.00552293,2716.0,2715.9,0.73629]
[1739505149610,0.00552293,2716.0,2715.5,6.08672256]
[1739505150116,0.00552293,2716.0,2715.7,0.73633]
[1739505150315,0.74179293,2716.0,2715.7,0.73633]
[1739505150516,0.7363,2715.9,2715.6,0.73636]
[1739505150918,0.00552293,2716.0,2715.5,3.2078]
[1739505151216,0.00552293,2716.0,2715.9,0.73629]
[1739505151617,0.00552293,2716.0,2715.9,1.28129]
[1739505152124,0.00552293,2716.0,2715.9,1.87649]
[1739505152312,1.024e-05,2716.0,2715.9,7.87649]
[1739505157624,1.024e-05,2716.0,2715.9,0.73629]
[1739505163032,1.024e-05,2716.0,2715.9,6.73629]
[1739505163531,1.024e-05,2716.0,2715.9,0.73629]
[1739505164825,1.024e-05,2716.0,2715.9,6.73629]
[1739505171623,0.5647,2717.1,2715.9,8.87892256]
[1739505171828,30.194,2719.0,2717.2,0.73594]
[1739505171829,0.5648,2717.5,2717.2,0.73594]
[1739505172024,0.5648,2717.5,2717.4,0.73589]
[1739505172634,0.5648,2717.5,2717.2,40.8]
[1739505172833,0.5532,2717.4,2717.3,0.73591]
[1739505173131,0.00552293,2717.7,2717.6,0.73583]
[1739505173330,0.00552293,2717.7,2717.6,3.94363]
[1739505173933,0.00552293,2717.7,2717.6,0.73583]
[1739505174342,0.00552293,2717.7,2717.6,3.94363]
[1739505174534,0.00552293,2717.7,2717.6,0.73583]
[1739505175826,0.00552293,2717.7,2717.3,6.08672256]
[1739505176232,0.00552293,2717.7,2717.3,3.94371]
[1739505176540,0.00552293,2717.7,2717.4,0.73589]
[1739505176930,0.00552293,2717.7,2717.3,3.9437]
[1739505177637,0.00552293,2717.7,2717.4,0.73588]
[1739505177837,0.00552293,2717.7,2717.4,0.73589]
[1739505178138,0.00552293,2717.7,2717.6,0.73583]
[1739505178338,0.00552293,2717.7,2717.3,3.2078]
[1739505178540,0.74134293,2717.7,2717.3,3.94371]
[1739505178836,0.5545,2717.6,2717.3,3.94371]
[1739505179140,0.5545,2717.6,2717.3,0.73591]
[1739505179332,0.5545,2717.6,2717.2,0.00552293]
[1739505179639,2.87892256,2717.5,2717.2,0.00552293]
[1739505179830,0.73591,2717.3,2716.9,0.73601]
[1739505180035,0.5763,2717.2,2716.7,3.2078]
[1739505180238,0.73598,2717.1,2716.7,0.73605]
[1739505180838,1.31225,2717.2,2716.4,6.08672256]
[1739505181140,0.5763,2717.2,2716.7,6.08672256]
[1739505181340,1.811,2717.1,2717.0,0.73599]
[1739505182641,0.5763,2717.2,2717.1,0.73597]
[1739505183433,0.5763,2717.2,2716.7,6.08672256]
[1739505183828,0.5763,2717.2,2716.8,0.73605]
[1739505184030,0.5763,2717.2,2716.7,6.08672256]
[1739505184237,0.5763,2717.2,2717.1,0.73597]
[1739505185045,0.5763,2717.2,2716.9,0.736]
[1739505185249,0.5763,2717.2,2716.7,6.08672256]
[1739505185446,0.5763,2717.2,2716.9,0.73601]
[1739505185649,0.5763,2717.2,2717.0,0.73599]
[1739505186544,0.5763,2717.2,2717.1,0.73597]
[1739505187141,0.5743,2717.3,2717.2,0.73594]
[1739505188642,0.5743,2717.3,2716.7,6.08672256]
[1739505188946,1.31023,2717.3,2716.9,0.736]
[1739505189147,0.73594,2717.2,2716.9,0.736]
[1739505189540,1.31023,2717.3,2716.9,0.736]
[1739505189740,0.5743,2717.3,2716.7,6.08672256]
[1739505190144,0.5743,2717.3,2717.0,0.73597]
[1739505190342,0.5743,2717.3,2717.2,0.73594]
[1739505190940,0.5842,2717.5,2717.0,2.87892256]
[1739505191146,0.5842,2717.5,2717.4,0.73589]
[1739505191349,0.5842,2717.5,2717.0,6.08672256]
[1739505191545,0.5842,2717.5,2717.4,0.73589]
[1739505193644,0.5842,2717.5,2717.4,0.34290356]
[1739505193948,1.1161,2717.6,2717.5,0.73586]
[1739505194148,0.5616,2717.6,2717.5,0.73586]
[1739505194543,0.5616,2717.6,2717.5,3.94366]
[1739505195243,0.00552293,2717.7,2717.6,0.73583]
[1739505199151,0.00552293,2717.7,2717.3,0.00243547]
[1739505199652,0.74133293,2717.7,2717.4,0.73588]
[1739505200351,0.00552293,2717.7,2717.4,0.73588]
[1739505200551,0.00552293,2717.7,2717.5,3.2078]
[1739505200847,0.00552293,2717.7,2717.6,1.27183]
[1739505201948,0.00552293,2717.7,2717.5,3.94364]
[1739505202249,0.00552293,2717.7,2717.6,3.61475256]
[1739505202454,1.781,2718.4,2717.6,44.27292256]
[1739505202645,1.781,2718.4,2718.0,2.87892256]
[1739505203039,1.781,2718.4,2718.0,3.61462256]
[1739505203242,3.2078,2718.5,2718.2,0.73565]
[1739505203449,3.2078,2718.5,2718.1,0.73569]
[1739505203641,3.2078,2718.5,2718.1,0.74121293]
[1739505204052,3.2078,2718.5,2718.1,0.00552293]
[1739505204551,3.2078,2718.5,2718.3,0.73562]
[1739505204846,0.00552293,2718.6,2718.1,0.00552293]
[1739505205052,0.00552293,2718.6,2718.5,0.73559]
[1739505207946,0.00552293,2718.6,2718.5,41.53559]
[1739505209953,0.00552293,2718.6,2718.5,44.41451256]
[1739505210661,3.4581,2719.6,2718.8,1.83876]
[1739505210858,3.2078,2719.8,2719.0,6.08672256]
[1739505211153,2.87892256,2720.2,2719.0,6.08672256]
[1739505211154,3.7511,2720.1,2719.8,0.73522]
[1739505211349,3.7511,2720.1,2719.9,0.73519]
[1739505211752,3.7511,2720.1,2719.8,0.73523]
[1739505211954,3.7511,2720.1,2719.7,0.00552293]
[1739505212153,3.7511,2720.1,2719.7,0.74078293]
[1739505212357,4.48627,2720.1,2719.7,0.00552293]
[1739505212854,1.30259,2720.0,2719.7,0.00552293]
[1739505213064,0.5674,2720.0,2719.7,0.00552293]
[1739505213248,0.5674,2720.0,2719.7,0.74077293]
[1739505213951,0.5674,2720.0,2719.7,0.00552293]
[1739505214154,0.00552293,2720.3,2719.9,6.08672256]
[1739505214454,0.00552293,2720.3,2720.2,3.61405256]
[1739505214856,0.00552293,2720.3,2720.2,2.87892256]
[1739505215052,0.00552293,2720.3,2720.1,0.73514]
[1739505215252,0.00552293,2720.3,2719.9,6.08672256]
[1739505215453,0.00552293,2720.3,2720.2,0.73513]
[1739505215854,0.00552293,2720.3,2719.9,6.08672256]
[1739505216559,0.00552293,2720.3,2719.9,3.2078]
[1739505216758,0.00552293,2720.3,2719.9,3.943]
[1739505216959,0.00552293,2720.3,2719.9,3.2078]
[1739505217560,0.00552293,2720.3,2720.2,0.73513]
[1739505218059,0.00552293,2720.3,2720.2,3.61405256]
[1739505218462,0.00552293,2720.3,2719.9,3.2078]
[1739505219658,0.00552293,2720.3,2720.0,0.73517]
[1739505219964,0.00552293,2720.3,2719.9,3.2078]
[1739505220159,0.00552293,2720.3,2720.1,0.73514]
[1739505220567,0.00552293,2720.3,2719.9,3.2078]
[1739505220760,0.00552293,2720.3,2720.1,0.73515]
[1739505221157,0.00552293,2720.3,2719.9,3.943]
[1739505221356,0.00552293,2720.3,2720.0,0.73516]
[1739505223066,0.00552293,2720.3,2719.9,3.943]
[1739505223269,0.00552293,2720.3,2719.9,3.2078]
[1739505223471,0.00552293,2720.3,2719.6,3.43802256]
[1739505223671,3.94299,2720.0,2719.6,0.73529]
[1739505223870,1.1203,2719.9,2719.6,0.73529]
[1739505224072,1.85553,2719.9,2719.5,3.9431]
[1739505224266,1.7039,2719.9,2719.5,3.2078]
[1739505224465,0.73524,2719.8,2719.5,44.0078]
[1739505224968,1.7039,2719.9,2719.5,44.0078]
[1739505225174,0.73524,2719.8,2719.5,44.0078]
[1739505225465,0.73524,2719.8,2719.1,0.5407]
[1739505225466,0.73524,2719.8,2719.2,0.73538]
[1739505225874,0.73524,2719.8,2719.4,0.73533]
[1739505226369,0.73524,2719.8,2719.3,0.73536]
[1739505226569,0.73524,2719.8,2719.4,0.73534]
[1739505227067,0.73524,2719.8,2719.1,3.7485]
[1739505227068,4.58282256,2719.9,2719.1,3.2078]
[1739505227273,3.2078,2719.4,2719.1,0.73541]
[1739505227473,4.9708,2719.4,2718.8,3.2078]
[1739505227771,4.9708,2719.4,2719.0,0.73543]
[1739505227961,1.763,2719.4,2719.1,0.73541]
[1739505228767,1.763,2719.4,2719.0,0.00552293]
[1739505228972,1.763,2719.4,2719.0,0.74096293]
[1739505229173,1.763,2719.4,2719.0,0.00552293]
[1739505229470,0.73543,2719.1,2719.0,0.00552293]
[1739505229670,3.94323,2719.1,2719.0,0.00552293]
[1739505230572,9.94323,2719.1,2719.0,0.00552293]
[1739505230763,0.73556,2718.7,2718.3,0.5899]
[1739505231071,0.73556,2718.7,2718.4,0.7356]
[1739505231072,1.764,2718.7,2718.4,0.7356]
[1739505232275,0.73564,2718.3,2718.2,3.2078]
[1739505232463,4.64292256,2718.7,2717.9,3.2078]
[1739505232464,0.73568,2718.2,2717.9,3.2078]
[1739505232663,2.49968,2718.2,2717.8,4.62775166]
[1739505232865,1.764,2718.2,2717.8,3.89197166]
[1739505233071,1.764,2718.2,2717.8,7.09977166]
[1739505233368,1.764,2718.2,2717.9,0.73574]
[1739505233875,1.761,2718.1,2717.8,7.09977166]